bitfinex-derivatives/quotes_BNBF0:USTF0_20250128
["timestamp","ask_amount","ask_price","bid_price","bid_amount"]
[1738099068183,0.27529499,668.17,667.13,0.29979164]
[1738099068384,0.27529499,668.21,667.13,0.29979164]
[1738099068683,0.27529499,668.2,667.13,0.29979164]
[1738099068879,0.27529499,668.19,667.13,0.29979164]
[1738099075990,0.27530684,668.18,667.13,0.29979164]
[1738099076288,0.27530684,668.17,667.13,0.29979164]
[1738099076489,0.27530684,668.16,667.13,0.29979164]
[1738099076690,0.27530684,668.19,667.13,0.29979164]
[1738099076889,0.27530684,668.18,667.13,0.29979164]
[1738099077185,0.27530684,668.17,667.13,0.29979164]
[1738099077392,0.27530684,668.19,667.13,0.29979164]
[1738099077592,0.27530684,668.18,667.13,0.29979164]
[1738099077793,0.27530684,668.19,667.13,0.29979164]
[1738099077993,0.27530684,668.18,667.13,0.29979164]
[1738099078186,0.27530684,668.19,667.13,0.29979164]
[1738099078387,0.27530684,668.18,667.13,0.29979164]
[1738099078594,2.67903403,668.2,667.13,0.29979164]
[1738099078787,0.27530886,668.19,667.13,0.29979164]
[1738099080790,2.67903403,668.2,667.13,0.29979164]
[1738099080989,0.27530146,668.19,667.13,0.29979164]
[1738099081188,1.11515895,668.13,667.13,0.29979164]
[1738099081392,0.27530146,668.12,667.13,0.29979164]
[1738099082493,0.27531795,668.11,667.13,0.29979164]
[1738099082795,1.11515895,668.13,667.13,0.29979164]
[1738099082796,0.27531795,668.1,667.13,0.29979164]
[1738099083103,0.27531795,668.09,667.12,1.11815907]
[1738099083395,0.27531795,668.08,667.12,1.11815907]
[1738099083596,0.27531795,668.07,667.12,1.11815907]
[1738099083795,0.27531795,668.06,667.12,1.11815907]
[1738099084096,0.57469673,668.05,667.12,1.11815907]
[1738099084298,0.27531795,668.04,667.12,1.11815907]
[1738099084490,0.29938775,668.03,667.12,1.11815907]
[1738099084695,0.27531795,668.02,667.12,1.11815907]
[1738099084895,0.27531795,668.02,664.98,1.42287886]
[1738099084896,0.29939671,668.01,667.09,1.11815907]
[1738099085090,0.27531795,668.0,667.09,1.11815907]
[1738099086499,0.29940567,667.99,667.09,1.11815907]
[1738099086800,0.27531795,667.98,667.09,1.11815907]
[1738099087399,0.29941464,667.97,667.09,1.11815907]
[1738099088399,0.29941464,667.97,666.79,1.11815907]
[1738099088601,0.27542519,667.96,666.79,1.11815907]
[1738099089098,0.2994236,667.95,666.79,1.11815907]
[1738099091401,0.2994236,667.95,666.56,1.11815907]
[1738099092100,1.56444924,667.94,666.56,1.11815907]
[1738099093700,0.27542178,667.93,666.56,1.11815907]
[1738099093900,1.56444924,667.94,666.56,1.11815907]
[1738099094097,0.5748524,667.93,666.56,1.11815907]
[1738099094301,0.57485688,667.92,666.48,1.11815907]
[1738099094503,0.29943705,667.92,666.49,0.30007952]
[1738099095203,0.27542726,667.91,666.49,0.30007952]
[1738099095398,0.29943705,667.92,666.49,0.30007952]
[1738099095598,0.27542726,667.91,666.49,0.30007952]
[1738099097303,0.29943705,667.92,666.49,0.30007952]
[1738099097500,0.27542851,667.91,666.49,0.30007952]
[1738099098403,0.29943705,667.92,666.49,0.30007952]
[1738099099705,0.29943705,667.92,666.49,1.41823859]
[1738099102806,0.27544544,667.91,666.49,0.30007952]
[1738099103402,0.29944602,667.9,666.49,0.30007952]
[1738099104709,0.27546746,667.89,666.49,0.30007952]
[1738099105309,0.29945499,667.88,666.49,0.30007952]
[1738099105506,0.27546746,667.87,666.49,0.30007952]
[1738099106012,1.56480683,667.86,666.49,0.30007952]
[1738099106208,0.27546746,667.85,666.49,0.30007952]
[1738099106705,0.29947292,667.84,666.49,0.30007952]
[1738099106905,0.27546746,667.83,666.49,0.30007952]
[1738099107306,0.29948189,667.82,666.49,0.30007952]
[1738099107610,0.2754786,667.81,666.49,0.30007952]
[1738099108113,0.57496498,667.81,666.49,0.30007952]
[1738099108312,0.2754786,667.8,666.49,0.30007952]
[1738099114216,0.29949535,667.79,666.49,0.30007952]
[1738099114416,0.2754786,667.78,666.49,0.30007952]
[1738099114616,0.29950432,667.77,666.49,0.30007952]
[1738099114810,0.2754786,667.76,666.49,0.30007952]
[1738099115120,0.29951329,667.75,666.49,0.30007952]
[1738099115317,0.2754786,667.74,666.49,0.30007952]
[1738099115817,0.2754786,667.74,666.51,1.11815907]
[1738099115818,0.57499637,667.74,666.51,1.11815907]
[1738099116016,0.2754786,667.73,666.51,1.11815907]
[1738099116219,1.84040271,667.73,666.51,1.11815907]
[1738099116410,0.2754786,667.72,666.51,1.11815907]
[1738099119320,1.56492411,667.73,666.54,1.11815907]
[1738099119518,0.27547818,667.72,666.54,1.11815907]
[1738099121811,1.56492411,667.73,666.54,1.11815907]
[1738099122016,0.29951777,667.74,666.54,1.11815907]
[1738099122720,0.29951777,667.74,666.62,1.11815907]
[1738099126726,0.29951777,667.74,666.68,1.11815907]
[1738099129923,0.29951777,667.74,666.69,1.11815907]
[1738099133324,0.29951777,667.74,666.68,1.11815907]
[1738099137327,0.29951777,667.74,666.61,1.11815907]
[1738099137520,0.29951777,667.74,666.61,1.41818457]
[1738099141629,0.29951777,667.74,666.62,0.300021]
[1738099143528,0.29951777,667.74,666.71,1.11815907]
[1738099147438,0.29951777,667.74,666.81,1.11815907]
[1738099150142,1.11515895,668.14,666.81,1.11815907]
[1738099150337,0.57468274,668.13,666.81,1.11815907]
[1738099150543,1.11515895,668.14,666.81,1.11815907]
[1738099150544,1.56420312,668.0,666.81,1.11815907]
[1738099150743,0.2753398,667.99,666.81,1.11815907]
[1738099150940,0.2753398,668.11,666.79,1.11815907]
[1738099151144,0.2753398,668.11,666.79,1.41810358]
[1738099153049,1.86337479,668.12,666.79,1.41810358]
[1738099153246,0.27534304,668.11,666.79,1.41810358]
[1738099154749,0.27534304,668.11,666.88,1.11815907]
[1738099154946,0.29935638,668.1,666.88,1.11815907]
[1738099155148,0.27534304,668.09,666.88,1.11815907]
[1738099155350,0.29936534,668.08,666.88,1.11815907]
[1738099156050,0.27534751,668.07,666.88,1.11815907]
[1738099156247,0.57471733,668.07,666.88,1.11815907]
[1738099156449,0.29936982,668.07,666.88,1.11815907]
[1738099156652,0.27534945,668.06,666.88,1.11815907]
[1738099157251,0.29936982,668.07,666.79,1.41810358]
[1738099157750,0.27534888,668.06,666.79,1.41810358]
[1738099157954,0.29936982,668.07,666.79,1.41810358]
[1738099158545,0.27534693,668.06,666.79,1.41810358]
[1738099159653,0.29936982,668.07,666.79,1.41810358]
[1738099160353,0.29936982,668.07,666.81,1.11815907]
[1738099162456,0.27532931,668.06,666.81,1.11815907]
[1738099163251,0.27532931,668.06,666.87,1.11815907]
[1738099164153,0.29936982,668.07,666.87,1.11815907]
[1738099166658,0.29936982,668.07,667.02,1.11815907]
[1738099167553,0.27530435,668.06,667.02,1.11815907]
[1738099169258,0.27532796,668.05,667.02,1.11815907]
[1738099169459,0.27532796,668.06,667.02,1.11815907]
[1738099169657,1.83933776,668.05,667.02,1.11815907]
[1738099169858,0.27532796,668.04,667.02,1.11815907]
[1738099170159,0.27532796,668.04,667.0,1.11815907]
[1738099170758,1.5640098,668.05,667.0,1.11815907]
[1738099170958,0.27533663,668.04,667.0,1.11815907]
[1738099171959,0.27533663,668.04,666.79,1.41810358]
[1738099171960,0.27533663,668.04,666.96,1.11815907]
[1738099174056,1.5640098,668.05,666.96,1.11815907]
[1738099174254,0.29936982,668.07,666.96,1.11815907]
[1738099174459,0.27530205,668.06,666.96,1.11815907]
[1738099175162,0.29936982,668.07,666.96,1.11815907]
[1738099176061,0.29936982,668.07,666.98,1.11815907]
[1738099179067,0.29936982,668.07,667.06,1.11815907]
[1738099181870,0.29936982,668.07,667.07,1.11815907]
[1738099183070,1.11515895,668.25,667.07,1.11815907]
[1738099183366,1.11515895,668.25,667.08,0.29981411]
[1738099185163,1.56347694,668.42,667.08,0.29981411]
[1738099194271,0.27520336,668.41,667.08,0.29981411]
[1738099196167,0.2752084,668.4,667.08,0.29981411]
[1738099196371,0.2752084,668.41,667.08,0.29981411]
[1738099196568,0.2752084,668.4,667.08,0.29981411]
[1738099196772,0.2752084,668.39,667.08,0.29981411]
[1738099196971,0.2752084,668.41,667.08,0.29981411]
[1738099197171,0.2752084,668.4,667.08,0.29981411]
[1738099197375,0.2752084,668.39,667.08,0.29981411]
[1738099197572,0.2752084,668.38,667.08,0.29981411]
[1738099197972,1.56347694,668.42,667.08,0.29981411]
[1738099198173,0.27520749,668.41,667.08,0.29981411]
[1738099198969,1.56347694,668.42,667.08,0.29981411]
[1738099199771,0.27520253,668.41,667.08,0.29981411]
[1738099202670,0.27521155,668.4,667.11,1.11815907]
[1738099202875,0.27521155,668.39,667.11,1.11815907]
[1738099203078,0.27521155,668.41,667.11,1.11815907]
[1738099204274,1.56347694,668.42,667.11,1.11815907]
[1738099204473,0.2752211,668.41,667.11,1.11815907]
[1738099204979,0.29922202,668.4,667.11,1.11815907]
[1738099205275,0.29922202,668.4,667.08,0.29981411]
[1738099209581,0.27526329,668.39,667.08,0.29981411]
[1738099211081,0.29922202,668.4,667.08,0.29981411]
[1738099211479,0.27525742,668.39,667.08,0.29981411]
[1738099212575,0.29922202,668.4,667.08,0.29981411]
[1738099212781,0.27526684,668.39,667.08,0.29981411]
[1738099213274,0.29923097,668.38,667.08,0.29981411]
[1738099213478,0.27526684,668.37,667.08,0.29981411]
[1738099215781,0.29923993,668.36,667.08,0.29981411]
[1738099215980,0.27527521,668.35,667.08,0.29981411]
[1738099216182,0.29924888,668.34,667.08,0.29981411]
[1738099216383,0.27527521,668.33,667.08,0.29981411]
[1738099216880,0.29925784,668.32,667.08,0.29981411]
[1738099217081,0.27527521,668.31,667.08,0.29981411]
[1738099217277,0.29926679,668.3,667.08,0.29981411]
[1738099218283,0.27527495,668.29,667.08,0.29981411]
[1738099218583,0.57454306,668.28,667.08,0.29981411]
[1738099218782,0.57454754,668.27,667.08,0.29981411]
[1738099218982,0.27526731,668.26,667.08,0.29981411]
[1738099219678,0.57455201,668.26,667.08,0.29981411]
[1738099219881,0.57455649,668.25,667.08,0.29981411]
[1738099220079,0.27526731,668.24,667.08,0.29981411]
[1738099220483,0.29929814,668.23,667.08,0.29981411]
[1738099220679,0.27526731,668.22,667.08,0.29981411]
[1738099222185,0.2993071,668.21,667.08,0.29981411]
[1738099222582,0.27531053,668.2,667.08,0.29981411]
[1738099222885,0.29931606,668.19,667.08,0.29981411]
[1738099223585,0.2753139,668.18,667.08,0.29981411]
[1738099223889,0.29932502,668.17,667.08,0.29981411]
[1738099224086,0.27531762,668.16,667.08,0.29981411]
[1738099224386,0.29933398,668.15,667.08,0.29981411]
[1738099224587,0.27531762,668.14,667.08,0.29981411]
[1738099224782,0.29934294,668.13,667.08,0.29981411]
[1738099224984,0.27531762,668.12,667.08,0.29981411]
[1738099225180,0.27531762,668.12,666.87,1.11815907]
[1738099225181,0.2993519,668.11,666.87,1.11815907]
[1738099225486,0.27531762,668.1,666.87,1.11815907]
[1738099225690,0.2993519,668.11,666.87,1.11815907]
[1738099225886,0.2753331,668.1,666.87,1.11815907]
[1738099226086,0.29935638,668.1,666.87,1.11815907]
[1738099226588,0.29935638,668.1,666.83,1.11815907]
[1738099226887,1.56393951,668.09,666.83,1.11815907]
[1738099227590,0.29936534,668.08,666.83,1.11815907]
[1738099228086,0.27534957,668.07,666.83,1.11815907]
[1738099228488,0.2993743,668.06,666.83,1.11815907]
[1738099228688,0.27534957,668.05,666.83,1.11815907]
[1738099228987,0.57474407,668.04,666.83,1.11815907]
[1738099229184,0.57474855,668.03,666.75,1.11815907]
[1738099229386,0.2753608,668.02,666.75,1.11815907]
[1738099231087,0.29938775,668.03,666.75,1.11815907]
[1738099231289,0.27537074,668.02,666.75,1.11815907]
[1738099231890,0.27537074,668.02,666.74,1.11815907]
[1738099232583,0.57476297,668.02,666.74,1.11815907]
[1738099232786,0.27537074,668.01,666.74,1.11815907]
[1738099234593,0.27537074,668.01,666.65,1.11815907]
[1738099235091,0.29940119,668.0,666.65,1.11815907]
[1738099235489,0.27539094,667.99,666.65,1.11815907]
[1738099236087,0.29941016,667.98,666.65,1.11815907]
[1738099236290,0.27539094,667.97,666.65,1.11815907]
[1738099236890,1.56444338,667.96,666.65,1.11815907]
[1738099237091,0.27539094,667.95,666.65,1.11815907]
[1738099237489,1.56444338,667.96,666.65,1.11815907]
[1738099237686,0.57483646,667.95,666.6,1.11815907]
[1738099237889,0.57484095,667.94,666.6,1.11815907]
[1738099238087,0.57484543,667.93,666.6,1.11815907]
[1738099238292,0.27541286,667.92,666.6,1.11815907]
[1738099239090,0.27544039,667.91,666.6,1.11815907]
[1738099239291,0.27544039,667.9,666.6,1.11815907]
[1738099239492,0.27544039,667.89,666.6,1.11815907]
[1738099239685,0.29945499,667.88,666.6,1.11815907]
[1738099239886,0.27544039,667.87,666.49,1.11815907]
[1738099240088,0.29946395,667.86,666.49,1.11815907]
[1738099241093,0.27544372,667.85,666.49,1.11815907]
[1738099241392,0.29947292,667.84,666.49,1.11815907]
[1738099241893,0.27544815,667.83,666.49,1.11815907]
[1738099242293,0.29947292,667.84,666.49,1.11815907]
[1738099242694,0.27544257,667.83,666.49,1.11815907]
[1738099242895,0.29948189,667.82,666.49,1.11815907]
[1738099244191,0.29948189,667.82,666.5,0.30007501]
[1738099247298,1.56475406,667.81,666.5,0.30007501]
[1738099248201,1.86424044,667.81,666.5,0.30007501]
[1738099258707,0.27545933,667.8,666.5,0.30007501]
[1738099259408,0.29949535,667.79,666.5,0.30007501]
[1738099259607,0.27545933,667.78,666.5,0.30007501]
[1738099259810,0.5749959,667.77,666.5,0.30007501]
[1738099260007,1.56475406,667.81,666.5,0.30007501]
[1738099260008,0.57500038,667.76,666.5,0.30007501]
[1738099260209,0.29951329,667.75,666.5,0.30007501]
[1738099260409,0.27549572,667.74,666.5,0.30007501]
[1738099260610,0.29952226,667.73,666.5,0.30007501]
[1738099260809,0.27549572,667.72,666.5,0.30007501]
[1738099261010,0.29953123,667.71,666.5,0.30007501]
[1738099261212,0.27549572,667.7,666.5,0.30007501]
[1738099261414,0.29953123,667.71,666.5,0.30007501]
[1738099262013,0.27555577,667.7,666.5,0.30007501]
[1738099264621,0.29953123,667.71,666.5,0.30007501]
[1738099264920,0.27563916,667.7,666.5,0.30007501]
[1738099265417,0.27563916,667.69,666.5,0.30007501]
[1738099265619,0.27563916,667.68,666.5,0.30007501]
[1738099265817,0.27563916,667.67,666.07,1.11815907]
[1738099266017,0.27563916,667.66,666.07,1.11815907]
[1738099266209,0.29953123,667.71,666.07,1.11815907]
[1738099266210,0.27563916,667.65,666.07,1.11815907]
[1738099266414,0.27563916,667.64,666.07,1.11815907]
[1738099266616,0.27563916,667.63,666.07,1.11815907]
[1738099266818,0.27563916,667.62,666.07,1.11815907]
[1738099267017,0.27563916,667.61,666.07,1.11815907]
[1738099267212,0.27563916,667.7,666.07,1.11815907]
[1738099267413,0.27563916,667.69,666.07,1.11815907]
[1738099267619,0.27563916,667.7,666.07,1.11815907]
[1738099267819,0.27563916,667.69,666.07,1.11815907]
[1738099268015,0.27563916,667.68,666.07,1.11815907]
[1738099268220,0.27563916,667.67,666.07,1.11815907]
[1738099268420,0.27563916,667.7,666.07,1.11815907]
[1738099268621,1.11515895,667.59,665.83,1.11815907]
[1738099268820,0.27563916,667.58,665.84,0.30037246]
[1738099269620,0.27571046,667.57,665.84,0.30037246]
[1738099269821,0.27571046,667.56,665.84,0.30037246]
[1738099270019,0.27571046,667.55,665.84,0.30037246]
[1738099270217,0.29960751,667.54,665.84,0.30037246]
[1738099270417,0.27571046,667.53,665.84,0.30037246]
[1738099271222,1.84166179,667.52,665.84,0.30037246]
[1738099271423,0.29962546,667.5,665.84,0.30037246]
[1738099271724,0.27569311,667.49,665.84,0.30037246]
[1738099272323,0.29963893,667.47,665.84,0.30037246]
[1738099272522,0.27569311,667.46,665.84,0.30037246]
[1738099273722,0.29964791,667.45,665.84,0.30037246]
[1738099273924,0.27569311,667.44,665.84,0.30037246]
[1738099274525,0.27568472,667.43,665.84,0.30037246]
[1738099274825,0.5753461,667.42,665.84,0.30037246]
[1738099275025,0.27568472,667.41,665.84,0.30037246]
[1738099275228,0.29967036,667.4,665.84,0.30037246]
[1738099275429,0.27568472,667.39,665.84,0.30037246]
[1738099275728,0.29967934,667.38,665.84,0.30037246]
[1738099275921,0.27568472,667.37,665.84,0.30037246]
[1738099276126,0.29968832,667.36,665.84,0.30037246]
[1738099276328,0.27568472,667.35,665.84,0.30037246]
[1738099277626,0.2996973,667.34,665.84,0.30037246]
[1738099277829,0.27568422,667.33,665.84,0.30037246]
[1738099278031,0.29970628,667.32,665.84,0.30037246]
[1738099278231,0.27568422,667.31,665.84,0.30037246]
[1738099280534,0.29970628,667.32,665.84,0.30037246]
[1738099280834,0.27567153,667.31,665.84,0.30037246]
[1738099281333,0.29970628,667.32,665.84,0.30037246]
[1738099281533,1.5662271,667.3,665.84,0.30037246]
[1738099285632,0.29971976,667.29,665.84,0.30037246]
[1738099286238,0.2757208,667.28,665.84,0.30037246]
[1738099286842,0.29971976,667.29,665.84,0.30037246]
[1738099287039,0.27570934,667.28,665.84,0.30037246]
[1738099287341,0.29972874,667.27,665.84,0.30037246]
[1738099287538,0.27570934,667.26,665.84,0.30037246]
[1738099287840,0.29973772,667.25,665.84,0.30037246]
[1738099288038,0.27570934,667.24,665.84,0.30037246]
[1738099288238,0.29974671,667.23,665.84,0.30037246]
[1738099288539,0.27570934,667.22,665.84,0.30037246]
[1738099289139,0.29974671,667.23,665.84,0.30037246]
[1738099289335,0.29975569,667.21,665.84,0.30037246]
[1738099289741,0.27572611,667.2,665.84,0.30037246]
[1738099290741,0.29976468,667.19,665.84,0.30037246]
[1738099290941,0.27572261,667.18,665.84,0.30037246]
[1738099291143,0.29977367,667.17,665.84,0.30037246]
[1738099291337,0.27572261,667.16,665.84,0.30037246]
[1738099291735,1.56655025,667.15,665.84,0.30037246]
[1738099294548,0.27571621,667.14,665.84,0.30037246]
[1738099295244,1.56655025,667.15,665.84,0.30037246]
[1738099296847,0.27568233,667.14,665.84,0.30037246]
[1738099297051,1.56655025,667.15,665.84,0.30037246]
[1738099297344,0.27568415,667.14,665.88,1.11241231]
[1738099297551,1.56655025,667.15,665.88,1.41276672]
[1738099299146,0.27570154,667.14,665.88,1.41276672]
[1738099299346,1.56655025,667.15,665.88,1.41276672]
[1738099299546,0.27568989,667.14,665.88,1.41276672]
[1738099300149,0.27568989,667.14,666.04,1.11241231]
[1738099300649,1.56655025,667.15,666.04,1.11241231]
[1738099300850,0.27568964,667.14,666.04,1.11241231]
[1738099302351,0.27569037,667.13,666.04,1.11241231]
[1738099302549,0.27569037,667.12,666.04,1.11241231]
[1738099302850,0.27569037,667.11,666.04,1.11241231]
[1738099303152,0.27569037,667.1,666.16,1.11241231]
[1738099303448,0.27569037,667.09,666.16,1.11241231]
[1738099303650,0.27569037,667.14,666.16,1.11241231]
[1738099303849,1.56655025,667.15,666.16,1.11241231]
[1738099304043,0.27568449,667.14,666.16,1.11241231]
[1738099304646,0.29977367,667.17,666.16,1.11241231]
[1738099306548,0.29977367,667.17,665.98,1.11241231]
[1738099306751,0.29977367,667.17,665.99,0.3003048]
[1738099309461,0.29977367,667.17,666.0,1.11241231]
[1738099309962,1.5659217,667.3,666.0,1.11241231]
[1738099310664,10.95877566,673.13,665.11,2.11314458]
[1738099310961,1.56589234,667.33,663.28,3.85424573]
[1738099311161,8.46962463,669.47,663.29,3.85424573]
[1738099311461,1.56640335,667.33,663.3,3.85424573]
[1738099311660,0.27564175,667.32,663.31,3.85424573]
[1738099311855,6.49599919,669.44,663.32,3.85424573]
[1738099312057,6.49599919,669.44,663.3,3.0907205]
[1738099312058,6.49599919,669.43,663.33,3.85424573]
[1738099312256,5.48956975,669.42,663.34,3.85424573]
[1738099312457,8.74556349,669.41,663.35,3.85424573]
[1738099312654,6.49629758,669.4,663.36,3.85424573]
[1738099312864,6.49629758,669.39,663.37,6.94496623]
[1738099313058,6.49629758,669.38,663.38,3.85424573]
[1738099313258,6.49629758,669.37,663.39,3.85424573]
[1738099313463,6.49629758,669.36,663.4,3.85424573]
[1738099313660,1.11962345,667.47,666.17,1.12264629]
[1738099314065,0.27562794,667.46,666.17,1.12264629]
[1738099315262,1.11962345,667.47,666.17,1.12264629]
[1738099315463,0.27562787,667.46,666.17,1.12264629]
[1738099317464,0.27562787,667.46,666.23,1.12264629]
[1738099317663,0.27562787,667.45,666.23,1.12264629]
[1738099317859,0.27562787,667.49,666.23,1.12264629]
[1738099318066,0.27562787,667.48,666.23,1.12264629]
[1738099318365,0.27562787,667.47,666.23,1.12264629]
[1738099318565,0.27562787,667.46,666.23,1.12264629]
[1738099318765,0.27562787,667.49,666.23,1.12264629]
[1738099318960,0.27562787,667.48,666.23,1.12264629]
[1738099319165,0.27562567,667.47,666.23,1.12264629]
[1738099319366,0.27562567,667.46,666.23,1.12264629]
[1738099319566,0.27562567,667.49,666.23,1.12264629]
[1738099319767,0.27562567,667.48,666.23,1.12264629]
[1738099319966,1.11962345,667.5,666.23,1.12264629]
[1738099320669,1.11962345,667.5,666.01,1.12264629]
[1738099320670,1.11962345,667.45,666.25,1.12264629]
[1738099321269,0.27564828,667.44,666.25,1.12264629]
[1738099323164,1.56577492,667.43,666.25,1.12264629]
[1738099323469,1.56577492,667.43,665.97,1.12264629]
[1738099323470,0.27564828,667.42,666.18,1.12264629]
[1738099326869,0.27564828,667.42,666.13,1.12264629]
[1738099330069,0.27564828,667.42,666.25,1.12264629]
[1738099332978,0.27565406,667.41,666.25,1.12264629]
[1738099333171,0.27565406,667.4,666.25,1.12264629]
[1738099333375,0.27565406,667.39,666.2,1.12264629]
[1738099333577,0.27565406,667.42,666.2,1.12264629]
[1738099333878,0.27565406,667.41,666.2,1.12264629]
[1738099334083,0.27565406,667.42,666.2,1.12264629]
[1738099334381,0.27565406,667.41,666.2,1.12264629]
[1738099334580,0.27565406,667.42,666.2,1.12264629]
[1738099334781,0.27565406,667.41,666.2,1.12264629]
[1738099334981,0.27565406,667.4,666.2,1.12264629]
[1738099335182,0.27565406,667.42,666.2,1.12264629]
[1738099335981,2.68539837,667.43,666.2,1.12264629]
[1738099336184,0.27566591,667.42,666.2,1.12264629]
[1738099336782,0.27566591,667.42,665.59,2.12740297]
[1738099336783,1.11962345,667.36,666.18,1.12264629]
[1738099336982,0.27566591,667.35,666.18,1.12264629]
[1738099337383,1.56582189,667.34,666.18,1.12264629]
[1738099337580,0.27566591,667.33,666.18,1.12264629]
[1738099337782,0.27566907,667.32,666.18,1.12264629]
[1738099338077,0.27566907,667.31,666.18,1.12264629]
[1738099338281,0.27566907,667.33,666.18,1.12264629]
[1738099338481,0.27566907,667.32,666.18,1.12264629]
[1738099338684,0.27566907,667.31,666.18,1.12264629]
[1738099338885,0.27566907,667.3,666.18,1.12264629]
[1738099339081,0.27566907,667.29,666.18,1.12264629]
[1738099339279,0.27566907,667.33,666.18,1.12264629]
[1738099339485,0.27566907,667.32,666.18,1.12264629]
[1738099339684,0.27566907,667.31,666.18,1.12264629]
[1738099339884,1.11962345,667.28,666.24,1.12264629]
[1738099340079,0.27566907,667.27,666.24,1.12264629]
[1738099342486,0.27566907,667.27,666.17,1.12264629]
[1738099342684,1.11962345,667.32,666.17,1.12264629]
[1738099342878,0.27565023,667.31,666.17,1.12264629]
[1738099344681,0.27565023,667.31,666.23,1.12264629]
[1738099344882,0.27565023,667.3,666.23,1.12264629]
[1738099345078,0.27565023,667.29,666.23,1.12264629]
[1738099345383,0.27565023,667.28,666.23,1.12264629]
[1738099345578,0.27565023,667.33,666.23,1.12264629]
[1738099345784,0.27565023,667.32,666.23,1.12264629]
[1738099345977,0.27565023,667.31,666.23,1.12264629]
[1738099346181,0.27564919,667.3,666.23,1.12264629]
[1738099346380,0.27564919,667.33,666.23,1.12264629]
[1738099349181,0.27566763,667.32,666.23,1.12264629]
[1738099349385,0.27566763,667.33,666.23,1.12264629]
[1738099349686,0.27566763,667.32,666.23,1.12264629]
[1738099349986,1.56582189,667.34,666.18,1.12264629]
[1738099350180,0.27566103,667.33,666.18,1.12264629]
[1738099352783,0.57536282,667.33,666.16,1.12264629]
[1738099353086,0.57537948,667.32,666.16,1.12264629]
[1738099353286,0.57538397,667.31,666.16,1.12264629]
[1738099353487,0.29971527,667.3,666.16,1.12264629]
[1738099355088,0.29971527,667.3,665.56,1.34717555]
[1738099355089,0.29971527,667.3,666.12,1.12264629]
[1738099358383,0.29971527,667.3,666.14,1.12264629]
[1738099361886,0.29971527,667.3,666.19,1.12264629]
[1738099362791,0.27566705,667.29,666.19,1.12264629]
[1738099362989,0.29971527,667.3,666.19,1.12264629]
[1738099363993,0.27565898,667.29,666.19,1.12264629]
[1738099364892,0.27565898,667.29,666.21,1.12264629]
[1738099366287,0.29971527,667.3,666.21,1.12264629]
[1738099366492,0.2756586,667.29,666.21,1.12264629]
[1738099367691,0.2756586,667.29,665.64,8.34356976]
[1738099367692,1.11962345,667.26,666.33,1.12264629]
[1738099367891,0.2756586,667.25,666.33,1.12264629]
[1738099370792,0.2756586,667.25,665.78,3.1118313]
[1738099370793,1.39528205,667.25,666.31,1.12264629]
[1738099370991,0.2756586,667.24,666.31,1.12264629]
[1738099371292,1.11962345,667.25,666.31,1.12264629]
[1738099371591,0.27566586,667.24,666.31,1.12264629]
[1738099373091,1.11962345,667.25,666.31,1.12264629]
[1738099373392,0.29971527,667.3,665.78,0.71504075]
[1738099373393,0.27564287,667.24,666.33,1.12264629]
[1738099373593,1.11962345,667.26,666.33,1.12264629]
[1738099373790,0.27564258,667.25,666.33,1.12264629]
[1738099374693,1.11962345,667.26,666.33,1.12264629]
[1738099374993,0.27564862,667.25,666.33,1.12264629]
[1738099376192,1.11962345,667.26,666.33,1.12264629]
[1738099376592,1.11962345,667.26,666.37,1.12264629]
[1738099380094,1.11962345,667.26,666.08,1.12264629]
[1738099380095,1.11962345,667.26,666.15,1.12264629]
[1738099380399,0.29971527,667.3,666.15,1.12264629]
[1738099383395,0.29971527,667.3,666.12,1.12264629]
[1738099386599,0.27567004,667.29,666.1,1.12264629]
[1738099386795,0.27567004,667.32,666.1,1.12264629]
[1738099386994,0.29971077,667.31,666.1,1.12264629]
[1738099387299,0.27567345,667.3,666.1,1.12264629]
[1738099387494,0.29971976,667.29,666.1,1.12264629]
[1738099387693,0.27567345,667.28,666.1,1.12264629]
[1738099388303,1.56595694,667.27,666.1,1.12264629]
[1738099388496,0.27567345,667.26,666.1,1.12264629]
[1738099388898,1.56595694,667.27,666.1,1.12264629]
[1738099389402,0.27569325,667.26,666.1,1.12264629]
[1738099389797,1.3953167,667.26,666.1,1.12264629]
[1738099390000,0.27569325,667.25,666.24,1.12264629]
[1738099391003,0.29974222,667.24,666.24,1.12264629]
[1738099391202,0.27569325,667.23,666.24,1.12264629]
[1738099391399,0.2997512,667.22,666.24,1.12264629]
[1738099391699,0.27569325,667.21,666.24,1.12264629]
[1738099392602,0.2997512,667.22,666.24,1.12264629]
[1738099392806,0.2997512,667.22,666.11,1.12264629]
[1738099392807,0.27572753,667.21,666.11,1.12264629]
[1738099393003,0.2997512,667.22,666.11,1.12264629]
[1738099393805,0.27573734,667.21,666.11,1.12264629]
[1738099394007,0.29976019,667.2,666.11,1.12264629]
[1738099394506,0.27573734,667.19,666.11,1.12264629]
[1738099394708,0.29976917,667.18,666.11,1.12264629]
[1738099394902,0.27573734,667.17,666.11,1.12264629]
[1738099395408,0.29977816,667.16,666.11,1.12264629]
[1738099395604,0.29977816,667.16,666.05,1.12264629]
[1738099395605,1.11962345,667.15,666.05,1.12264629]
[1738099395805,0.29978715,667.14,666.05,1.12264629]
[1738099398609,1.56629172,667.13,666.05,1.12264629]
[1738099398810,1.56629172,667.13,665.57,1.34717555]